fUST/lending_fUST_20250802
["ID","MTS","AMOUNT","RATE_DAILY","PERIOD"]
[376777880,1754118644636,-460.0,0.00024657,10]
[376777881,1754118644646,-250.10857162,0.00024657,10]
[376777882,1754118644655,-460.0,0.00024657,10]
[376777883,1754118644666,-460.0,0.00024657,10]
[376777884,1754118644675,-461.0554644,0.00024657,10]
[376777885,1754118644683,-460.0,0.00024657,10]
[376777886,1754118644692,-464.2594474,0.00024657,10]
[376777887,1754118644701,-460.0,0.00024657,10]
[376777888,1754118644711,-460.0,0.00024657,10]
[376777889,1754118644720,-461.43229512,0.00024657,10]
[376777890,1754118644729,-460.0,0.00024657,10]
[376777891,1754118644738,-460.0,0.00024657,10]
[376777892,1754118644748,-460.0,0.00024657,10]
[376777893,1754118644757,-460.0,0.00024657,10]
[376777894,1754118644766,-460.0,0.00024657,10]
[376777895,1754118644775,-460.0,0.00024657,10]
[376777896,1754118644784,-460.0,0.00024657,10]
[376777897,1754118644794,-460.0,0.00024657,10]
[376777898,1754118644803,-460.0,0.00024657,10]
[376777899,1754118644812,-460.0,0.00024657,10]
[376777900,1754118644822,-460.0,0.00024657,10]
[376777901,1754118644831,-460.0,0.00024657,10]
[376777902,1754118644841,-460.0,0.00024657,10]
[376777903,1754118644850,-460.0,0.00024657,10]
[376777904,1754118644860,-460.0,0.00024657,10]
[376777905,1754118644869,-460.0,0.00024657,10]
[376777906,1754118644878,-460.0,0.00024657,10]
[376777907,1754118644887,-460.0,0.00024657,10]
[376777908,1754118644897,-460.0,0.00024657,10]
[376777909,1754118644906,-460.0,0.00024657,10]
[376777910,1754118644915,-460.0,0.00024657,10]
[376777911,1754118644924,-460.0,0.00024657,10]
[376777912,1754118644933,-460.0,0.00024657,10]
[376777913,1754118644943,-460.0,0.00024657,10]
[376777914,1754118644952,-369.1,0.00024657,10]
[376777915,1754118644964,-460.0,0.00024657,10]
[376777916,1754118644973,-460.0,0.00024657,10]
[376777917,1754118644982,-460.0,0.00024657,10]
[376777918,1754118644993,-460.0,0.00024657,10]
[376777919,1754118645003,-460.0,0.00024657,10]
[376777920,1754118645013,-460.0,0.00024657,10]
[376777921,1754118645023,-460.0,0.00024657,10]
[376777922,1754118645034,-460.0,0.00024657,10]
[376777923,1754118645043,-460.0,0.00024657,10]
[376777924,1754118645054,-460.0,0.00024657,10]
[376777925,1754118645065,-460.0,0.00024657,10]
[376777926,1754118645075,-460.0,0.00024657,10]
[376777927,1754118645085,-460.0,0.00024657,10]
[376777928,1754118645095,-460.0,0.00024657,10]
[376777929,1754118645105,-460.0,0.00024657,10]
[376777930,1754118645114,-460.0,0.00024657,10]
[376777931,1754118645123,-460.0,0.00024657,10]
[376777932,1754118645132,-460.0,0.00024657,10]
[376777933,1754118645141,-460.0,0.00024657,10]
[376777934,1754118645151,-460.0,0.00024657,10]
[376777935,1754118645160,-460.0,0.00024657,10]
[376777936,1754118645170,-541.55,0.00024657,10]
[376777937,1754118645179,-460.0,0.00024657,10]
[376777938,1754118645189,-460.0,0.00024657,10]
[376777939,1754118645197,-460.0,0.00024657,10]
[376777940,1754118645207,-460.0,0.00024657,10]
[376777941,1754118645218,-460.0,0.00024657,10]
[376777942,1754118645227,-460.0,0.00024657,10]
[376777943,1754118645236,-510.28,0.00024657,10]
[376777944,1754118645245,-460.0,0.00024657,10]
[376777945,1754118645254,-351.44636609,0.00024657,10]
[376777946,1754118645264,-583.10008186,0.00024657,10]
[376777947,1754118645273,-460.0,0.00024657,10]
[376777948,1754118645282,-462.54998314,0.00024657,10]
[376777949,1754118645291,-460.0,0.00024657,10]
[376777950,1754118645300,-460.0,0.00024657,10]
[376777951,1754118645309,-462.05609293,0.00024657,10]
[376777952,1754118645318,-460.0,0.00024657,10]
[376777953,1754118645327,-460.0,0.00024657,10]
[376777954,1754118645339,-316.89694518,0.00024657,10]
[376777955,1754118645349,-460.0,0.00024657,10]
[376777956,1754118645359,-498.19,0.00024657,10]
[376777957,1754118645369,-367.258229,0.00024657,10]
[376777958,1754118645379,-460.0,0.00024657,10]
[376777959,1754118645390,-460.0,0.00024657,10]
[376777960,1754118645483,-460.0,0.00024657,10]
[376777961,1754118645505,-460.0,0.00024657,10]
[376777962,1754118645516,-460.0,0.00024657,10]
[376777963,1754118645527,-460.0,0.00024657,10]
[376777964,1754118645537,-460.0,0.00024657,10]
[376777965,1754118645547,-460.0,0.00024657,10]
[376777966,1754118645556,-460.0,0.00024657,10]
[376777967,1754118645565,-317.99614882,0.00024657,10]
[376777969,1754118645574,-460.0,0.00024657,10]
[376777970,1754118645583,-161.7571295,0.00024657,10]
[376777971,1754118645592,-497.29804953,0.00024657,10]
[376777972,1754118645601,-460.0,0.00024657,10]
[376777973,1754118645610,-461.62246511,0.00024657,10]
[376777974,1754118645620,-325.29208394,0.00024657,10]
[376777975,1754118645630,-462.19261702,0.00024657,10]
[376777976,1754118645640,-460.0,0.00024657,10]
[376777977,1754118645651,-608.39609636,0.00024657,10]
[376777978,1754118645660,-461.93064159,0.00024657,10]
[376777979,1754118645669,-462.12583803,0.00024657,10]
[376777980,1754118645678,-460.0,0.00024657,10]
[376777981,1754118645687,-209.27284313,0.00024657,10]
[376777982,1754118645696,-461.19915396,0.00024657,10]
[376777983,1754118645706,-461.3091942,0.00024657,10]
[376777984,1754118645716,-466.76376873,0.00024657,10]
[376777985,1754118645725,-464.38877077,0.00024657,10]
[376777986,1754118645734,-464.75239961,0.00024657,10]
[376777987,1754118645744,-460.0,0.00024657,10]
[376777988,1754118645753,-462.56200934,0.00024657,10]
[376777989,1754118645762,-460.0,0.00024657,10]
[376777990,1754118645772,-463.6200879,0.00024657,10]
[376777991,1754118645781,-461.53331034,0.00024657,10]
[376777992,1754118645791,-460.0,0.00024657,10]
[376777993,1754118645800,-461.27401697,0.00024657,10]
[376777994,1754118645810,-462.98703613,0.00024657,10]
[376777995,1754118645819,-178.11523979,0.00024657,10]
[376777996,1754118645828,-460.0,0.00024657,10]
[376777997,1754118645838,-469.06279474,0.00024657,10]
[376777998,1754118645848,-460.0,0.00024657,10]
[376777999,1754118645858,-470.83558964,0.00024657,10]
[376778000,1754118645867,-460.0,0.00024657,10]
[376778001,1754118645877,-460.0,0.00024657,10]
[376778002,1754118645887,-462.37232196,0.00024657,10]
[376778003,1754118645896,-466.17473831,0.00024657,10]
[376778004,1754118645906,-465.42415299,0.00024657,10]
[376778005,1754118645915,-460.0,0.00024657,10]
[376778006,1754118645924,-460.0,0.00024657,10]
[376778007,1754118645933,-460.0,0.00024657,10]
[376778008,1754118645942,-262.28252579,0.00024657,10]
[376778009,1754118645952,-460.0,0.00024657,10]
[376778010,1754118645963,-460.0,0.00024657,10]
[376778011,1754118645973,-460.0,0.00024657,10]
[376778012,1754118645982,-460.0,0.00024657,10]
[376778013,1754118645993,-460.0,0.00024657,10]
[376778014,1754118646002,-460.0,0.00024657,10]
[376778015,1754118646011,-466.55274193,0.00024657,10]
[376778016,1754118646021,-460.0,0.00024657,10]
[376778017,1754118646030,-460.0,0.00024657,10]
[376778018,1754118646039,-460.0,0.00024657,10]
[376778019,1754118646048,-460.0,0.00024657,10]
[376778020,1754118646059,-460.0,0.00024657,10]
[376778021,1754118646069,-536.14,0.00024657,10]
[376778022,1754118646079,-460.0,0.00024657,10]
[376778023,1754118646088,-1006.77925113,0.00024657,10]
[376778024,1754118646098,-460.0,0.00024657,10]
[376778025,1754118646107,-460.0,0.00024657,10]
[376778026,1754118646117,-460.71815874,0.00024657,10]
[376778027,1754118646126,-460.0,0.00024657,10]
[376778028,1754118646136,-460.0,0.00024657,10]
[376778029,1754118646146,-460.0,0.00024657,10]
[376778030,1754118646155,-460.0,0.00024657,10]
[376778031,1754118646164,-460.0,0.00024657,10]
[376778032,1754118646173,-461.52218759,0.00024657,10]
[376778033,1754118646182,-500.0,0.00024657,10]
[376778034,1754118646191,-500.0,0.00024657,10]
[376778035,1754118646200,-460.0,0.00024657,10]
[376778036,1754118646209,-469.41636274,0.00024657,10]
[376778037,1754118646221,-460.0,0.00024657,10]
[376778038,1754118646230,-460.0,0.00024657,10]
[376778039,1754118646239,-460.0,0.00024657,10]
[376778040,1754118646248,-460.0,0.00024657,10]
[376778041,1754118646258,-460.0,0.00024657,10]
[376778042,1754118646267,-460.0,0.00024657,10]
[376778043,1754118646276,-460.0,0.00024657,10]
[376778044,1754118646286,-460.0,0.00024657,10]
[376778045,1754118646295,-460.0,0.00024657,10]
[376778046,1754118646304,-460.0,0.00024657,10]
[376778047,1754118646313,-460.0,0.00024657,10]
[376778048,1754118646322,-460.0,0.00024657,10]
[376778049,1754118646331,-527.02465094,0.00024657,10]
[376778050,1754118646341,-460.0,0.00024657,10]
[376778051,1754118646350,-460.0,0.00024657,10]
[376778052,1754118646359,-460.0,0.00024657,10]
[376778053,1754118646368,-460.0,0.00024657,10]
[376778054,1754118646377,-460.0,0.00024657,10]
[376778055,1754118646392,-460.0,0.00024657,10]
[376778056,1754118646401,-460.0,0.00024657,10]
[376778057,1754118646411,-460.0,0.00024657,10]
[376778058,1754118646420,-460.0,0.00024657,10]
[376778059,1754118646431,-460.0,0.00024657,10]
[376778060,1754118646440,-460.0,0.00024657,10]
[376778061,1754118646449,-500.0,0.00024657,10]
[376778062,1754118646463,-460.0,0.00024657,10]
[376778063,1754118646472,-282.24,0.00024657,10]
[376778064,1754118646481,-460.0,0.00024657,10]
[376778065,1754118646490,-460.0,0.00024657,10]
[376778066,1754118646499,-460.0,0.00024657,10]
[376778067,1754118646508,-460.0,0.00024657,10]
[376778068,1754118646517,-460.0,0.00024657,10]
[376778069,1754118646527,-460.36891817,0.00024657,10]
[376778070,1754118646536,-460.0,0.00024657,10]
[376778071,1754118646545,-460.0,0.00024657,10]
[376778072,1754118646554,-460.0,0.00024657,10]
[376778073,1754118646563,-460.0,0.00024657,10]
[376778074,1754118646571,-460.0,0.00024657,10]
[376778075,1754118646580,-462.9154054,0.00024657,10]
[376778076,1754118646589,-460.0,0.00024657,10]
[376778077,1754118646598,-460.0,0.00024657,10]
[376778078,1754118646607,-361.40413366,0.00024657,10]
[376778079,1754118646620,-460.0,0.00024657,10]
[376778080,1754118646629,-460.0,0.00024657,10]
[376778081,1754118646638,-463.28484618,0.00024657,10]
[376778082,1754118646647,-460.0,0.00024657,10]
[376778083,1754118646656,-210.6,0.00024657,10]
[376778084,1754118646665,-463.40792167,0.00024657,10]
[376778085,1754118646674,-460.0,0.00024657,10]
[376778086,1754118646684,-460.0,0.00024657,10]
[376778087,1754118646692,-460.0,0.00024657,10]
[376778088,1754118646701,-460.0,0.00024657,10]
[376778089,1754118646710,-462.82206386,0.00024657,10]
[376778090,1754118646720,-460.0,0.00024657,10]
[376778091,1754118646729,-460.0,0.00024657,10]
[376778092,1754118646738,-460.0,0.00024657,10]
[376778093,1754118646747,-460.0,0.00024657,10]
[376778094,1754118646756,-460.0,0.00024657,10]
[376778095,1754118646765,-460.0,0.00024657,10]
[376778096,1754118646774,-532.96420262,0.00024657,10]
[376778097,1754118646783,-462.26690476,0.00024657,10]
[376778098,1754118646793,-460.0,0.00024657,10]
[376778099,1754118646802,-460.0,0.00024657,10]
[376778100,1754118646812,-276.52722107,0.00024657,10]
[376778101,1754118646823,-1953.26,0.00024657,10]
[376778102,1754118646832,-462.80880441,0.00024657,10]
[376778103,1754118646841,-1953.26,0.00024657,10]
[376778104,1754118646851,-1953.26,0.00024657,10]
[376778105,1754118646860,-460.0,0.00024657,10]
[376778106,1754118646869,-1953.26,0.00024657,10]
[376778107,1754118646879,-1953.26,0.00024657,10]
[376778108,1754118646887,-460.0,0.00024657,10]
[376778109,1754118646897,-460.0,0.00024657,10]
[376778110,1754118646906,-1953.26,0.00024657,10]
[376778111,1754118646915,-464.79482017,0.00024657,10]
[376778112,1754118646924,-460.0,0.00024657,10]
[376778113,1754118646933,-1953.26,0.00024657,10]
[376778114,1754118646943,-460.0,0.00024657,10]
[376778115,1754118646952,-1953.26,0.00024657,10]
[376778116,1754118646961,-1953.26,0.00024657,10]
[376778117,1754118646971,-460.0,0.00024657,10]
[376778118,1754118646980,-216.80005108,0.00024657,10]
[376778119,1754118646989,-599.43040557,0.00024657,10]
[376778120,1754118646999,-1953.26,0.00024657,10]
[376778121,1754118647009,-1953.26,0.00024657,10]
[376778122,1754118647018,-460.0,0.00024657,10]
[376778123,1754118647028,-1953.26,0.00024657,10]
[376778124,1754118647037,-354.97455592,0.00024657,10]
[376778125,1754118647047,-1953.26,0.00024657,10]
[376778126,1754118647057,-1953.26,0.00024657,10]
[376778127,1754118647069,-1953.26,0.00024657,10]
[376778128,1754118647079,-1953.26,0.00024657,10]
[376778129,1754118647088,-1953.26,0.00024657,10]
[376778130,1754118647097,-1953.26,0.00024657,10]
[376778131,1754118647106,-460.0,0.00024657,10]
[376778132,1754118647115,-1953.26,0.00024657,10]
[376778133,1754118647125,-446.68995042,0.00024657,10]
[376778134,1754118647134,-1953.26,0.00024657,10]
[376778135,1754118647143,-460.0,0.00024657,10]
[376778136,1754118647152,-1953.26,0.00024657,10]
[376778137,1754118647161,-1953.26,0.00024657,10]
[376778138,1754118647171,-1953.26,0.00024657,10]
[376778139,1754118647180,-460.0,0.00024657,10]
[376778140,1754118647189,-1953.44798554,0.00024657,10]
[376778141,1754118647198,-1216.69,0.00024657,10]
[376778142,1754118647207,-1216.69,0.00024657,10]
[376778143,1754118647217,-1216.69,0.00024657,10]
[376778144,1754118647227,-1087.11132361,0.00024657,10]
[376778145,1754118647327,-129.57867639,0.00024657,10]
[376778146,1754118647336,-1099.87867674,0.00024657,10]
[376778147,1754118647351,-116.81132326,0.00024657,10]
[376778148,1754118647362,-760.07956194,0.00024657,10]
[376778149,1754118661428,207.0,0.00022779,4]
[376778151,1754118741783,152.0,0.00027167,30]
[376778152,1754118825041,5000.0,0.000228,2]
[376778156,1754118855979,2061.93504132,0.000228,2]
[376778157,1754118856001,2938.06495868,0.000228,2]
[376778158,1754118865730,400.0,0.00024658,120]
[376778159,1754118921954,227.59119515,0.000228,2]
[376778160,1754118959854,213.1,0.00022783,4]
[376778161,1754118999457,4119.51421909,0.000228,2]
[376778162,1754119174534,400.0,0.00024658,120]
[376778163,1754119197766,157.33340975,7.4e-07,2]
[376778164,1754119197872,157.33340975,7.4e-07,2]
[376778165,1754119197990,157.33340975,7.4e-07,2]
[376778166,1754119198299,157.33340975,7.4e-07,2]
[376778167,1754119198394,157.33340975,7.4e-07,2]
[376778168,1754119198608,157.33340975,7.4e-07,2]
[376778169,1754119198725,157.33340975,7.4e-07,2]
[376778170,1754119198831,157.33340975,7.4e-07,2]
[376778171,1754119198937,157.33340975,7.4e-07,2]
[376778172,1754119199052,157.33340975,7.4e-07,2]
[376778173,1754119220741,227.59119515,0.000228,2]
[376778174,1754119233463,150.5,0.00024889,120]
[376778175,1754119233922,255.39,0.00024879,120]
[376778176,1754119260082,220.7,0.00022782,4]
[376778177,1754119310116,158.74,0.00022782,2]
[376778178,1754119347227,266.51366233,0.00019654,2]
[376778179,1754119383093,54.8506721,0.00022782,2]
[376778180,1754119383117,105.3393279,0.00022782,2]
[376778181,1754119483150,400.0,0.00024658,120]
[376778182,1754119559871,466.0,0.00022782,4]
[376778183,1754119599010,506.9506329,0.00022632,2]
[376778184,1754119715574,3488.91910268,0.0002,20]
[376778185,1754119716450,1876.462094,0.0002,2]
[376778193,1754119756026,3556.32884252,0.00022646,2]
[376778194,1754119756049,10000.0,0.00022646,2]
[376778195,1754119756072,10000.0,0.00022646,2]
[376778196,1754119756096,1343.67115748,0.00022646,2]
[376778197,1754119792240,400.0,0.00024658,120]
[376778198,1754119792555,500.0,0.00022,2]
[376778199,1754119812340,436.55699158,0.00022117,2]
[376778200,1754119814604,1746.22796631,0.00022117,2]
[376778201,1754119816547,3925.08391128,0.00022117,2]
[376778245,1754119832660,-500.0,0.00023,2]
[376778246,1754119832670,-165.59838761,0.00023081,2]
[376778247,1754119832679,-466.0,0.0002318,5]
[376778248,1754119832688,-216.27517063,0.00023278,2]
[376778249,1754119832698,-300.0,0.00023279,2]
[376778250,1754119832707,-300.0,0.00023279,2]
[376778251,1754119832717,-224.0,0.00023279,2]
[376778252,1754119832727,-300.0,0.00023279,2]
[376778253,1754119832736,-658.0,0.00023279,2]
[376778254,1754119832745,-460.86285458,0.0002328,2]
[376778255,1754119832755,-500.0,0.00023344,2]
[376778256,1754119832765,-466.0,0.00023579,5]
[376778257,1754119832774,-200.0,0.00023746,15]
[376778258,1754119832784,-200.0,0.00023746,15]
[376778259,1754119832794,-200.0,0.00023746,15]
[376778260,1754119832803,-200.0,0.00023746,15]
[376778261,1754119832813,-200.0,0.00023746,15]
[376778262,1754119832822,-170.64708432,0.000239,2]
[376778263,1754119832832,-502.20605089,0.00023973,2]
[376778265,1754119832842,-501.81166154,0.00023973,2]
[376778267,1754119832851,-500.0,0.00023973,2]
[376778269,1754119832862,-466.0,0.00023977,5]
[376778270,1754119832871,-4216.39879043,0.0002399,2]
[376778317,1754119838743,-80411.1469444,0.0002399,2]
[376778318,1754119838753,-500.0,0.00024,2]
[376778319,1754119838763,-312.16666667,0.00024212,2]
[376778320,1754119838773,-160.0,0.00024215,2]
[376778321,1754119838783,-1372.83901377,0.00024223,2]
[376778322,1754119838792,-466.0,0.00024375,6]
[376778323,1754119838802,-760.39,0.00024433,7]
[376778324,1754119838811,-1004.35785339,0.00024521,2]
[376778325,1754119838821,-2124.65,0.0002453,10]
[376778326,1754119838830,-1770.55,0.0002453,10]
[376778327,1754119838839,-760.39,0.00024533,7]
[376778328,1754119838849,-10000.0,0.0002454,2]
[376778329,1754119838858,-384.73811225,0.00024541,2]
[376778330,1754119838868,-744.0823074,0.00024557,2]
[376778331,1754119838877,-7311.29901042,0.00024557,2]
[376778332,1754119838887,-215.0795835,0.00024616,2]
[376778333,1754119838899,-330.28188005,0.00024633,2]
[376778334,1754119838908,-760.39,0.00024633,7]
[376778335,1754119838917,-2069.6,0.00024647,3]
[376778336,1754119838927,-1638.58,0.00024647,3]
[376778337,1754119838938,-819.29,0.00024647,3]
[376778338,1754119838947,-819.29,0.00024647,3]
[376778339,1754119838956,-245.22,0.00024647,3]
[376778340,1754119838967,-735.69,0.00024647,3]
[376778341,1754119838976,-215.03,0.00024647,3]
[376778342,1754119838986,-645.09,0.00024647,3]
[376778343,1754119838995,-8300.93929458,0.0002465,2]
[376778392,1754119840589,-557.75467194,0.0002465,2]
[376778394,1754119840600,-3055.10603348,0.0002465,2]
[376778395,1754119840610,-744.08230737,0.00024655,2]
[376778397,1754119840619,-557.17232693,0.00024656,2]
[376778399,1754119840628,-341.376,0.00024656,7]
[376778402,1754119840638,-155.0,0.00024656,2]
[376778404,1754119840647,-426.02538989,0.00024656,2]
[376778405,1754119840656,-500.0,0.00024656,2]
[376778406,1754119840666,-500.0,0.00024656,2]
[376778407,1754119840676,-500.0,0.00024656,2]
[376778408,1754119840685,-500.0,0.00024656,2]
[376778409,1754119840694,-192.55063608,0.00024656,2]
[376778410,1754119840705,-307.44936392,0.00024656,2]
[376778411,1754119840715,-404.1333601,0.00024656,2]
[376778412,1754119840724,-500.0,0.00024656,2]
[376778413,1754119840733,-500.0,0.00024656,2]
[376778414,1754119840742,-500.0,0.00024656,2]
[376778415,1754119840751,-500.0,0.00024656,2]
[376778416,1754119840760,-500.0,0.00024656,2]
[376778417,1754119840769,-500.0,0.00024656,2]
[376778418,1754119840779,-500.0,0.00024656,2]
[376778419,1754119840787,-500.0,0.00024656,2]
[376778420,1754119840797,-500.0,0.00024656,2]
[376778421,1754119840806,-500.0,0.00024656,2]
[376778422,1754119840922,-500.0,0.00024656,2]
[376778423,1754119840933,-500.0,0.00024656,2]
[376778424,1754119840943,-500.0,0.00024656,2]
[376778425,1754119840951,-500.0,0.00024656,2]
[376778426,1754119840961,-532.89335207,0.00024656,2]
[376778427,1754119840970,-335.68834221,0.00024657,2]
[376778428,1754119840980,-460.0,0.00024657,10]
[376778429,1754119840989,-460.0,0.00024657,10]
[376778430,1754119840999,-465.74081597,0.00024657,10]
[376778431,1754119841008,-461.91970146,0.00024657,10]
[376778432,1754119841017,-464.90066265,0.00024657,10]
[376778433,1754119841026,-460.0,0.00024657,10]
[376778434,1754119841036,-460.0,0.00024657,10]
[376778435,1754119841045,-460.0,0.00024657,10]
[376778436,1754119841055,-460.0,0.00024657,10]
[376778437,1754119841064,-460.0,0.00024657,10]
[376778438,1754119841073,-460.0,0.00024657,10]
[376778439,1754119841082,-460.0,0.00024657,10]
[376778440,1754119841092,-134.93431725,0.00024657,10]
[376778485,1754119845076,-370.0,0.00024647,10]
[376778547,1754119964337,1034.4,0.00027181,30]
[376778548,1754119977817,2048.45997335,0.00022799,2]
[376778549,1754119977840,7951.54002665,0.00022799,2]
[376778550,1754119993474,262.58041745,0.000228,2]
[376778552,1754120005055,216.955431,0.00013699,2]
[376778553,1754120026006,1568.9241249,0.000228,2]
[376778554,1754120026028,8431.0758751,0.000228,2]
[376778555,1754120028159,229.36,0.000228,2]
[376778556,1754120041149,1339.5641249,0.000228,2]
[376778557,1754120041171,8660.4358751,0.000228,2]
[376778558,1754120058949,1339.5641249,0.000228,2]
[376778559,1754120058976,6389.4358751,0.000228,2]
[376778560,1754120104530,203.88,0.000228,2]
[376778561,1754120106633,427.46987072,0.00024658,120]
[376778562,1754120154969,-327.92053992,0.00022981,2]
[376778563,1754120229792,213.705543,0.00022737,2]
[376778564,1754120314276,181.22,0.00022737,2]
[376778565,1754120384059,161.09,0.00022737,2]
[376778566,1754120385336,-312.16666667,0.0002334,2]
[376778567,1754120385357,-160.0,0.00023341,2]
[376778568,1754120385379,-500.0,0.00023345,2]
[376778569,1754120385415,-500.0,0.00023456,2]
[376778570,1754120385438,-178.5367691,0.00023779,2]
[376778571,1754120385459,-539.4923896,0.00023873,2]
[376778572,1754120385480,-500.0,0.00023873,2]
[376778573,1754120385501,-233.27944302,0.00023873,2]
[376778574,1754120385523,-1200.0,0.00023878,2]
[376778575,1754120385545,-300.0,0.00023878,2]
[376778576,1754120385567,-17702.52473161,0.00023879,2]
[376778579,1754120417323,-228.98239277,0.00023,2]
[376778580,1754120421034,-137.01760723,0.00023,2]
[376778581,1754120501193,277.14913593,0.0002255,2]
[376778582,1754120708718,160.15,0.0002255,2]
[376778584,1754120737479,151.28821919,0.00020705,2]
[376778586,1754120802827,184.76609062,0.00021779,2]
[376778591,1754120944998,2077.31513616,0.0002277,2]
[376778592,1754120945021,7922.68486384,0.0002277,2]
[376778644,1754121032803,-500.0,0.00023345,2]
[376778645,1754121032815,-207.74188707,0.00023622,2]
[376778646,1754121032825,-156.97476,0.00023661,3]
[376778648,1754121032835,-170.64708428,0.00023673,2]
[376778649,1754121032845,-157.88113894,0.00023756,2]
[376778650,1754121032854,-1200.0,0.00023771,2]
[376778651,1754121032863,-1021.0,0.00023772,2]
[376778652,1754121032873,-300.0,0.00023772,2]
[376778653,1754121032883,-300.0,0.00023772,2]
[376778654,1754121032892,-300.0,0.00023772,2]
[376778655,1754121032902,-300.0,0.00023772,2]
[376778656,1754121032911,-300.0,0.00023772,2]
[376778657,1754121032920,-50000.0,0.00023772,2]
[376778658,1754121032930,-500.0,0.00023773,2]
[376778659,1754121032939,-500.73432059,0.00023773,2]
[376778660,1754121032948,-624.9505371,0.00023773,2]
[376778661,1754121032958,-500.0,0.00023773,2]
[376778662,1754121032968,-501.03009105,0.00023773,2]
[376778663,1754121032978,-500.0,0.00023773,2]
[376778664,1754121032987,-500.0,0.00023773,2]
[376778665,1754121032997,-500.88859753,0.00023773,2]
[376778666,1754121033007,-518.70284719,0.00023773,2]
[376778667,1754121033016,-500.0,0.00023773,2]
[376778668,1754121033026,-505.71605915,0.00023773,2]
[376778669,1754121033037,-157.88113893,0.0002378,2]
[376778670,1754121033046,-160.0,0.00023793,2]
[376778671,1754121033055,-160.0,0.00023793,2]
[376778672,1754121033065,-160.0,0.00023793,2]
[376778673,1754121033075,-231.57249719,0.00023793,2]
[376778674,1754121033084,-312.16666667,0.00023793,2]
[376778675,1754121033093,-215.0795835,0.00023793,2]
[376778676,1754121033102,-160.0,0.00023793,2]
[376778677,1754121033111,-1191.2295107,0.000238,2]
[376778678,1754121033121,-216.27517063,0.00023847,2]
[376778679,1754121033131,-160.0,0.00023847,2]
[376778680,1754121033141,-485.65035019,0.00023856,2]
[376778681,1754121033153,-501.71491162,0.00023873,2]
[376778682,1754121033164,-500.40054928,0.00023873,2]
[376778683,1754121033174,-500.0,0.00023873,2]
[376778684,1754121033183,-500.0,0.00023873,2]
[376778685,1754121033193,-153.18402389,0.00023873,2]
[376778686,1754121033203,-500.0,0.00023873,2]
[376778687,1754121033212,-500.0,0.00023873,2]
[376778688,1754121033222,-501.06612478,0.00023873,2]
[376778689,1754121033347,-500.0,0.00023873,2]
[376778690,1754121033364,-634.72855891,0.00023873,2]
[376778691,1754121033374,-500.0,0.00023873,2]
[376778692,1754121033383,-2000.0,0.00023879,2]
[376778693,1754121033392,-2000.0,0.00023879,2]
[376778694,1754121033402,-2000.0,0.00023879,2]
[376778695,1754121033412,-2000.0,0.00023879,2]
[376778696,1754121033422,-1990.416,0.00023879,2]
[376778697,1754121033431,-273.1,0.0002388,5]
[376778698,1754121033440,-2216.89,0.0002388,3]
[376778699,1754121033449,-1108.44,0.0002388,3]
[376778700,1754121033459,-554.22,0.0002388,3]
[376778701,1754121033469,-277.11,0.0002388,3]
[376778702,1754121033483,-831.38,0.0002388,3]
[376778703,1754121033493,-1413.79,0.0002388,10]